{"text_format":"1","workbook":"xlsx","n_sheets":2,"sheets":["Лист1","Не трогать"],"not_rendered":{"charts":0,"images":0,"macros":1,"external_links":0,"defined_names":2,"comments":0,"pivot_tables":0},"unopened":[],"bounds":{"document_bytes":16777216,"sheet_cells":100000,"rows_first":2000,"rows_last":500,"rows_between":2000,"halvings":0,"cell_chars":16384,"cell_head_chars":4096},"cells_cut":0,"cells_raw":0,"read":"whole","date_system":"1900"}

{"sheet":"Лист1","index":0,"n_rows":4,"n_cols":28,"rows_kept":4,"cut":false,"hidden":false,"merged":[]}
["Наименование","Артикул","Закупочная цена","Тип товара","Цвет","Материал","Размер","Ширина","Высота","Площадь 1 плитки","Цена","Цена указана за:","Валюта","Тип товара2","Статус","Доступен для заказа","Производитель","Страна производства","Поверхность","Толщина","Назначение2","Область применения","Рисунок плитки","Кол-во в упаковке (м2)","Кол-во в упаковке (шт.)","Вес коробки","Стойкость к истиранию (PEI)","Изобраджение"]
["ПВХ ",null,null,{"$f":"IFERROR(LOOKUP(,-SEARCH(INDEX(Списоксравнений,,1),A2),INDEX(Списоксравнений,,2)),\"\")","v":""},{"$f":"IFERROR(LOOKUP(,-SEARCH(INDEX(Цвета,,1),A2),INDEX(Цвета,,2)),\"\")","v":""},{"$f":"IFERROR(LOOKUP(,-SEARCH(INDEX(Материал,,1),A2),INDEX(Материал,,2)),\"\")","v":""},{"$f":"TRIM(MID(SUBSTITUTE(\" \"&SUBSTITUTE(A2,\"*\",\"x\"),\" \",REPT(\" \",99)),SEARCH(\"x\",SUBSTITUTE(\" \"&SUBSTITUTE(A2,\"*\",\"x\"),\" \",REPT(\" \",99)))-10,99))","v":{"$error":"#VALUE!"}},{"$f":"LEFT(G2,SEARCH(\"x\",G2)-1)","v":{"$error":"#VALUE!"}},{"$f":"MID(G2,SEARCH(\"x\",G2)+1,SEARCH(\"x\",G2&\"x\",SEARCH(\"x\",G2)+1)-SEARCH(\"x\",G2)-1)","v":{"$error":"#VALUE!"}},{"$f":"H2*I2/1000","v":{"$error":"#VALUE!"}},null,null,"RUB",null,1,1]
["ручка двери синий",null,null,{"$f":"IFERROR(LOOKUP(,-SEARCH(INDEX(Списоксравнений,,1),A3),INDEX(Списоксравнений,,2)),\"\")","v":""},{"$f":"IFERROR(LOOKUP(,-SEARCH(INDEX(Цвета,,1),A3),INDEX(Цвета,,2)),\"\")","v":"Синий"},{"$f":"IFERROR(LOOKUP(,-SEARCH(INDEX(Материал,,1),A3),INDEX(Материал,,2)),\"\")","v":""},{"$f":"TRIM(MID(SUBSTITUTE(\" \"&SUBSTITUTE(A3,\"*\",\"x\"),\" \",REPT(\" \",99)),SEARCH(\"x\",SUBSTITUTE(\" \"&SUBSTITUTE(A3,\"*\",\"x\"),\" \",REPT(\" \",99)))-10,99))","v":{"$error":"#VALUE!"}},{"$error":"#VALUE!"},{"$error":"#VALUE!"},{"$error":"#VALUE!"},null,null,"RUB",null,1,1]
["пол черн",null,null,{"$f":"IFERROR(LOOKUP(,-SEARCH(INDEX(Списоксравнений,,1),A4),INDEX(Списоксравнений,,2)),\"\")","v":"Напольная плитка"},{"$f":"IFERROR(LOOKUP(,-SEARCH(INDEX(Цвета,,1),A4),INDEX(Цвета,,2)),\"\")","v":"Черный"},{"$f":"IFERROR(LOOKUP(,-SEARCH(INDEX(Материал,,1),A4),INDEX(Материал,,2)),\"\")","v":""},{"$f":"TRIM(MID(SUBSTITUTE(\" \"&SUBSTITUTE(A4,\"*\",\"x\"),\" \",REPT(\" \",99)),SEARCH(\"x\",SUBSTITUTE(\" \"&SUBSTITUTE(A4,\"*\",\"x\"),\" \",REPT(\" \",99)))-10,99))","v":{"$error":"#VALUE!"}},{"$error":"#VALUE!"},{"$error":"#VALUE!"},{"$error":"#VALUE!"},null,null,"RUB",null,1,1]

{"sheet":"Не трогать","index":1,"n_rows":31,"n_cols":12,"rows_kept":31,"cut":false,"hidden":false,"merged":[]}
["Назначение","Цвет",null,null,"Есть","Нужно",null,"Есть цвета","Нужно цвета",null,"Есть материал","Нужно материал"]
["Настенная плитка","Бежевый",null,null,"Бордюр","Бордюр",null,"синий","Синий",null,"ПВХ","пвх"]
["Напольная плитка","Многоцветный",null,null,"Борд","Бордюр",null,"синий","Синий"]
["Строительная плитка","Коричневый",null,null,"Декор","Декор",null,"синий","Синий"]
["Декор","Серый",null,null,"Дек","Декор",null,"зелёный","Зеленый"]
["Бордюр","Зелёный",null,null,"Панно","Панно",null,"зеленый","Зеленый"]
["Плинтус","Розовый",null,null,"Пан","Панно",null,"зел","Зеленый"]
["Карандаш","Белый",null,null,"Картина","Картина",null,"черный","Черный"]
["Панно","Чёрный",null,null,"Карт","Картонка",null,"чёрный","Черный"]
["Мозаика","Жёлтый",null,null,"Картонка","Картонка",null,"черн","Черный"]
["Вставка","Красный",null,null,"борд","Бордюр",null,"чёрн","Черный"]
[null,"Синий",null,null,"пол","Напольная плитка",null,"корич","Коричневый"]
[null,"Золотой",null,null,"стен","Настенная плитка",null,"оранжев","Оранжевый"]
[null,null,null,null,"стен.","Настенная плитка",null,"рыжий","Оранжевый"]
[null,"Рыжий",null,null,null,null,null,"беж","Бежевый"]
[null,"Платина",null,null,null,null,null,"белый","Белый"]
[null,"Салатовый",null,null,null,null,null,"белая","Белый"]
[null,"Оранжевый",null,null,null,null,null,"красн","Красный"]
[null,"Голубой",null,null,null,null,null,"желт","Желтый"]
[null,null,null,null,null,null,null,"жёлт","Желтый"]
[null,"Сиреневый",null,null,null,null,null,"розов","Розовый"]
[null,"Светлый",null,null,null,null,null,"фиолетов","Фиолетовый"]
[null,"Лиловый",null,null,null,null,null,"голуб","Голубой"]
[null,"Фиолетовый",null,null,null,null,null,"платин","Платина"]
[null,"Металл",null,null,null,null,null,"серый","Серый"]
[null,"Салатный",null,null,null,null,null,"золот","Золотой"]
[null,"Охра",null,null,null,null,null,"серебря","Серебряный"]
[null,null,null,null,null,null,null,"разноцве","Разноцветный"]
[null,null,null,null,null,null,null,"сирен","Сиреневый"]
[null,null,null,null,null,null,null,"светл","Светлый"]
[null,null,null,null,null,null,null,"телесный","Телесный"]